[Event "Titled Tuesday Blitz September 13 Early 2022"]
[White "Sadhwani, Raunak"]
[Black "Demchenko, Anton"]
[WhiteFideId "35093487"]
[BlackFideId "4160258"]
[WhiteElo "2656"]
[BlackElo "2539"]
[Result "1-0"]
[Round "09"]
[TimeControl "180+1"]
[Date "2022.09.13"]
[WhiteClock "0:00:12"]
[BlackClock "0:00:02"]

1. c4 {[%clk 0:03:00]}  e6 {[%clk 0:02:58]} 2. Nf3 {[%clk 0:03:00]}  Nf6 {[%clk 0:02:56]} 3. d4 {[%clk 0:03:00]}  d5 {[%clk 0:02:56]} 4. g3 {[%clk 0:03:00]}  dxc4 {[%clk 0:02:47]} 5. Bg2 {[%clk 0:03:00]}  Nc6 {[%clk 0:02:46]} 6. Qa4 {[%clk 0:02:57]}  Bd7 {[%clk 0:02:46]} 7. Qxc4 {[%clk 0:02:57]}  Bd6 {[%clk 0:02:47]} 8. O-O {[%clk 0:02:56]}  O-O {[%clk 0:02:47]} 9. Nc3 {[%clk 0:02:54]}  h6 {[%clk 0:02:37]} 10. Rd1 {[%clk 0:02:53]}  Qe7 {[%clk 0:02:36]} 11. Bf4 {[%clk 0:02:44]}  Rad8 {[%clk 0:02:16]} 12. Rac1 {[%clk 0:02:43]}  a6 {[%clk 0:02:11]} 13. e3 {[%clk 0:02:37]}  Rfe8 {[%clk 0:02:08]} 14. Qe2 {[%clk 0:02:34]}  Nd5 {[%clk 0:01:33]} 15. Nxd5 {[%clk 0:02:17]}  exd5 {[%clk 0:01:33]} 16. Bxd6 {[%clk 0:02:18]}  Qxd6 {[%clk 0:01:32]} 17. Qc2 {[%clk 0:02:19]}  Rc8 {[%clk 0:01:22]} 18. a3 {[%clk 0:02:15]}  Bg4 {[%clk 0:01:15]} 19. Rd2 {[%clk 0:02:15]}  Bxf3 {[%clk 0:01:15]} 20. Bxf3 {[%clk 0:02:16]}  Nd8 {[%clk 0:01:12]} 21. Qb3 {[%clk 0:02:16]}  c6 {[%clk 0:00:39]} 22. Bxd5 {[%clk 0:02:15]}  Rc7 {[%clk 0:00:40]} 23. Bg2 {[%clk 0:02:12]}  h5 {[%clk 0:00:40]} 24. h4 {[%clk 0:02:12]}  g6 {[%clk 0:00:36]} 25. Rdc2 {[%clk 0:02:10]}  Rd7 {[%clk 0:00:34]} 26. Bh3 {[%clk 0:02:07]}  Rde7 {[%clk 0:00:33]} 27. Rc3 {[%clk 0:02:05]}  Ne6 {[%clk 0:00:33]} 28. Bxe6 {[%clk 0:02:05]}  Rxe6 {[%clk 0:00:33]} 29. Qxb7 {[%clk 0:01:43]}  Rxe3 {[%clk 0:00:14]} 30. Qxc6 {[%clk 0:01:43]}  Re1+ {[%clk 0:00:12]} 31. Kg2 {[%clk 0:01:33]}  Qxd4 {[%clk 0:00:12]} 32. Qc4 {[%clk 0:00:36]}  Qa7 {[%clk 0:00:09]} 33. b4 {[%clk 0:00:22]}  Qb7+ {[%clk 0:00:08]} 34. Rf3 {[%clk 0:00:21]}  R1e4 {[%clk 0:00:06]} 35. Qc6 {[%clk 0:00:20]}  Qa7 {[%clk 0:00:06]} 36. Qc5 {[%clk 0:00:18]}  Qb7 {[%clk 0:00:06]} 37. Qc6 {[%clk 0:00:19]}  Qa7 {[%clk 0:00:06]} 38. Rd1 {[%clk 0:00:19]}  R4e7 {[%clk 0:00:05]} 39. Rd6 {[%clk 0:00:19]}  a5 {[%clk 0:00:04]} 40. b5 {[%clk 0:00:19]}  a4 {[%clk 0:00:03]} 41. Rdf6 {[%clk 0:00:18]}  Kg7 {[%clk 0:00:03]} 42. Rxf7+ {[%clk 0:00:16]}  Rxf7 {[%clk 0:00:02]} 43. Qxe8 {[%clk 0:00:17]}  Rxf3 {[%clk 0:00:03]} 44. Kxf3 {[%clk 0:00:18]}  Qc5 {[%clk 0:00:02]} 45. Kg2 {[%clk 0:00:14]}  Qxa3 {[%clk 0:00:02]} 46. b6 {[%clk 0:00:11]}  Qb3 {[%clk 0:00:02]} 47. Qd7+ {[%clk 0:00:11]}  Kh6 {[%clk 0:00:02]} 48. Qd2+ {[%clk 0:00:11]}  Kg7 {[%clk 0:00:02]} 49. Qd4+ {[%clk 0:00:11]}  Kf7 {[%clk 0:00:03]} 50. Qd7+ {[%clk 0:00:09]}  Kf6 {[%clk 0:00:03]} 51. b7 {[%clk 0:00:10]}  a3 {[%clk 0:00:01]} 52. Qd6+ {[%clk 0:00:10]}  Kg7 {[%clk 0:00:01]} 53. b8=Q {[%clk 0:00:11]}  Qxb8 {[%clk 0:00:01]} 54. Qxb8 {[%clk 0:00:12]}  a2 {[%clk 0:00:02]} 55. Qe5+ {[%clk 0:00:12]} 1-0


[Site "https://www.chess.com"]

[Event "Titled Tuesday Blitz September 13 Early 2022"]
[White "Seo, Jung Min"]
[Black "Solon, Nathan"]
[WhiteFideId "1734687"]
[BlackFideId "2017229"]
[WhiteElo "2455"]
[BlackElo "2611"]
[Result "0-1"]
[Round "09"]
[TimeControl "180+1"]
[Date "2022.09.13"]
[WhiteClock "0:01:34"]
[BlackClock "0:01:43"]

1. c4 {[%clk 0:03:00]}  e6 {[%clk 0:02:59]} 2. d4 {[%clk 0:03:00]}  d5 {[%clk 0:03:00]} 3. Nc3 {[%clk 0:02:59]}  c5 {[%clk 0:03:00]} 4. cxd5 {[%clk 0:02:58]}  cxd4 {[%clk 0:03:00]} 5. Qxd4 {[%clk 0:02:54]}  Nc6 {[%clk 0:03:00]} 6. Qd1 {[%clk 0:02:50]}  exd5 {[%clk 0:03:01]} 7. Qxd5 {[%clk 0:02:49]}  Bd6 {[%clk 0:03:00]} 8. e3 {[%clk 0:02:43]}  Nf6 {[%clk 0:03:00]} 9. Qd1 {[%clk 0:02:43]}  O-O {[%clk 0:02:59]} 10. Nf3 {[%clk 0:02:43]}  Qe7 {[%clk 0:03:00]} 11. Be2 {[%clk 0:02:43]}  Rd8 {[%clk 0:02:59]} 12. Bd2 {[%clk 0:02:35]}  a6 {[%clk 0:02:54]} 13. a3 {[%clk 0:02:34]}  b5 {[%clk 0:02:51]} 14. O-O {[%clk 0:02:32]}  Bb7 {[%clk 0:02:48]} 15. Qc2 {[%clk 0:02:21]}  Ne5 {[%clk 0:02:39]} 16. Nxe5 {[%clk 0:02:20]}  Qxe5 {[%clk 0:02:37]} 17. f4 {[%clk 0:02:16]}  Qe6 {[%clk 0:02:31]} 18. Bf3 {[%clk 0:02:13]}  Bxf3 {[%clk 0:02:17]} 19. Rxf3 {[%clk 0:02:13]}  Bc5 {[%clk 0:02:04]} 20. Re1 {[%clk 0:02:11]}  Qc4 {[%clk 0:02:00]} 21. Bc1 {[%clk 0:02:06]}  Rd3 {[%clk 0:01:51]} 22. Qe2 {[%clk 0:01:40]}  Rad8 {[%clk 0:01:48]} 23. Kh1 {[%clk 0:01:34]}  Rxc3 {[%clk 0:01:43]} 0-1


[Site "https://www.chess.com"]

[Event "Titled Tuesday Blitz September 13 Early 2022"]
[White "Tari, Aryan"]
[Black "Ter-Sahakyan, Samvel"]
[WhiteFideId "1510045"]
[BlackFideId "13302531"]
[WhiteElo "2612"]
[BlackElo "2604"]
[Result "1/2-1/2"]
[Round "09"]
[TimeControl "180+1"]
[Date "2022.09.13"]
[WhiteClock "0:00:09"]
[BlackClock "0:00:04"]

1. e4 {[%clk 0:03:00]}  c6 {[%clk 0:02:59]} 2. d4 {[%clk 0:03:00]}  d5 {[%clk 0:03:00]} 3. e5 {[%clk 0:03:01]}  c5 {[%clk 0:02:58]} 4. Nf3 {[%clk 0:03:00]}  cxd4 {[%clk 0:02:51]} 5. Nxd4 {[%clk 0:03:01]}  Nc6 {[%clk 0:02:47]} 6. Nxc6 {[%clk 0:03:01]}  bxc6 {[%clk 0:02:47]} 7. Bd3 {[%clk 0:03:01]}  e6 {[%clk 0:02:47]} 8. O-O {[%clk 0:03:01]}  a5 {[%clk 0:02:47]} 9. Qe2 {[%clk 0:02:55]}  Ne7 {[%clk 0:02:46]} 10. Nd2 {[%clk 0:02:55]}  Ng6 {[%clk 0:02:39]} 11. Nf3 {[%clk 0:02:55]}  Be7 {[%clk 0:02:28]} 12. g3 {[%clk 0:02:55]}  Qb6 {[%clk 0:02:04]} 13. h4 {[%clk 0:02:50]}  h6 {[%clk 0:01:50]} 14. h5 {[%clk 0:02:32]}  Nf8 {[%clk 0:01:50]} 15. Be3 {[%clk 0:02:31]}  c5 {[%clk 0:01:51]} 16. c3 {[%clk 0:02:02]}  Ba6 {[%clk 0:01:47]} 17. b3 {[%clk 0:01:58]}  Bxd3 {[%clk 0:01:42]} 18. Qxd3 {[%clk 0:01:58]}  Nd7 {[%clk 0:01:42]} 19. c4 {[%clk 0:01:53]}  d4 {[%clk 0:01:42]} 20. Bf4 {[%clk 0:01:42]}  Qc6 {[%clk 0:01:40]} 21. Nd2 {[%clk 0:01:38]}  a4 {[%clk 0:01:36]} 22. Ne4 {[%clk 0:01:36]}  O-O {[%clk 0:01:36]} 23. Qf3 {[%clk 0:01:16]}  Ra6 {[%clk 0:01:27]} 24. Rae1 {[%clk 0:01:14]}  Kh8 {[%clk 0:01:04]} 25. g4 {[%clk 0:01:02]}  f5 {[%clk 0:00:58]} 26. exf6 {[%clk 0:01:00]}  Nxf6 {[%clk 0:00:59]} 27. Qg2 {[%clk 0:00:50]}  axb3 {[%clk 0:00:55]} 28. axb3 {[%clk 0:00:48]}  Rb6 {[%clk 0:00:49]} 29. g5 {[%clk 0:00:33]}  Nxe4 {[%clk 0:00:36]} 30. Rxe4 {[%clk 0:00:33]}  hxg5 {[%clk 0:00:31]} 31. Bd2 {[%clk 0:00:13]}  Rxb3 {[%clk 0:00:27]} 32. Qg4 {[%clk 0:00:13]}  Bf6 {[%clk 0:00:13]} 33. Rxe6 {[%clk 0:00:11]}  Qf3 {[%clk 0:00:10]} 34. Qxf3 {[%clk 0:00:11]}  Rxf3 {[%clk 0:00:10]} 35. Rc6 {[%clk 0:00:11]}  d3 {[%clk 0:00:07]} 36. Rxc5 {[%clk 0:00:10]}  Bd4 {[%clk 0:00:07]} 37. Rd5 {[%clk 0:00:11]}  Bxf2+ {[%clk 0:00:04]} 38. Kg2 {[%clk 0:00:11]}  Rg3+ {[%clk 0:00:04]} 39. Kh2 {[%clk 0:00:12]}  Rg4 {[%clk 0:00:04]} 40. Kh3 {[%clk 0:00:07]}  Rh4+ {[%clk 0:00:04]} 41. Kg2 {[%clk 0:00:08]}  Rg4+ {[%clk 0:00:05]} 42. Kh3 {[%clk 0:00:09]}  Rh4+ {[%clk 0:00:05]} 43. Kg2 {[%clk 0:00:09]}  Rg4+ {[%clk 0:00:04]} 44. Kh3 {[%clk 0:00:09]} 1/2-1/2


[Site "https://www.chess.com"]

[Event "Titled Tuesday Blitz September 13 Early 2022"]
[White "Williams, Simon K"]
[Black "Dimitrov, Atanas"]
[WhiteFideId "404454"]
[BlackFideId "2901315"]
[WhiteElo "2468"]
[BlackElo "2744"]
[Result "1-0"]
[Round "09"]
[TimeControl "180+1"]
[Date "2022.09.13"]
[WhiteClock "0:00:21"]
[BlackClock "0:00:02"]

1. d4 {[%clk 0:03:00]}  Nf6 {[%clk 0:03:00]} 2. c4 {[%clk 0:02:58]}  e6 {[%clk 0:02:58]} 3. Nf3 {[%clk 0:02:57]}  Be7 {[%clk 0:02:53]} 4. g4 {[%clk 0:02:49]}  d5 {[%clk 0:02:46]} 5. g5 {[%clk 0:02:41]}  Ne4 {[%clk 0:02:46]} 6. Nc3 {[%clk 0:02:37]}  Nxc3 {[%clk 0:02:42]} 7. bxc3 {[%clk 0:02:36]}  Nd7 {[%clk 0:02:19]} 8. h4 {[%clk 0:02:17]}  c6 {[%clk 0:02:14]} 9. a4 {[%clk 0:02:10]}  Qc7 {[%clk 0:02:05]} 10. Qd3 {[%clk 0:01:57]}  dxc4 {[%clk 0:02:03]} 11. Qxc4 {[%clk 0:01:56]}  Nb6 {[%clk 0:02:03]} 12. Qb3 {[%clk 0:01:51]}  c5 {[%clk 0:01:41]} 13. a5 {[%clk 0:01:49]}  Nd5 {[%clk 0:01:37]} 14. e4 {[%clk 0:01:43]}  Nf4 {[%clk 0:01:33]} 15. Bb5+ {[%clk 0:01:30]}  Kf8 {[%clk 0:01:30]} 16. h5 {[%clk 0:01:23]}  a6 {[%clk 0:01:15]} 17. Bf1 {[%clk 0:01:21]}  h6 {[%clk 0:01:00]} 18. gxh6 {[%clk 0:01:01]}  Rxh6 {[%clk 0:00:57]} 19. Ne5 {[%clk 0:01:01]}  Rxh5 {[%clk 0:00:55]} 20. Bxf4 {[%clk 0:00:55]}  Rxh1 {[%clk 0:00:36]} 21. Ng6+ {[%clk 0:00:55]}  fxg6 {[%clk 0:00:36]} 22. Bxc7 {[%clk 0:00:55]}  cxd4 {[%clk 0:00:35]} 23. cxd4 {[%clk 0:00:54]}  Bd7 {[%clk 0:00:35]} 24. Qxb7 {[%clk 0:00:48]}  Re8 {[%clk 0:00:35]} 25. O-O-O {[%clk 0:00:42]}  Rc8 {[%clk 0:00:28]} 26. Kb1 {[%clk 0:00:37]}  Rh5 {[%clk 0:00:23]} 27. Bxa6 {[%clk 0:00:32]}  Re8 {[%clk 0:00:19]} 28. d5 {[%clk 0:00:29]}  exd5 {[%clk 0:00:17]} 29. exd5 {[%clk 0:00:29]}  Bc5 {[%clk 0:00:10]} 30. Bd3 {[%clk 0:00:23]}  Kg8 {[%clk 0:00:02]} 31. a6 {[%clk 0:00:23]}  Bf5 {[%clk 0:00:02]} 32. Bxf5 {[%clk 0:00:23]}  Rxf5 {[%clk 0:00:03]} 33. a7 {[%clk 0:00:22]}  Bxa7 {[%clk 0:00:02]} 34. Qxa7 {[%clk 0:00:22]}  Rf7 {[%clk 0:00:03]} 35. d6 {[%clk 0:00:22]}  Rd7 {[%clk 0:00:03]} 36. Qc5 {[%clk 0:00:22]}  Ra8 {[%clk 0:00:01]} 37. Qd5+ {[%clk 0:00:21]}  Kh7 {[%clk 0:00:02]} 1-0


[Site "https://www.chess.com"]

[Event "Titled Tuesday Blitz September 13 Early 2022"]
[White "Zhigalko, Sergei"]
[Black "Bluebaum, Matthias"]
[WhiteFideId "13502956"]
[BlackFideId "24651516"]
[WhiteElo "2662"]
[BlackElo "2633"]
[Result "1-0"]
[Round "09"]
[TimeControl "180+1"]
[Date "2022.09.13"]
[WhiteClock "0:00:08"]
[BlackClock "0:00:07"]

1. e4 {[%clk 0:03:00]}  e5 {[%clk 0:02:59]} 2. Nf3 {[%clk 0:03:01]}  Nf6 {[%clk 0:03:00]} 3. Nxe5 {[%clk 0:02:59]}  d6 {[%clk 0:03:00]} 4. Nf3 {[%clk 0:03:00]}  Nxe4 {[%clk 0:03:01]} 5. Nc3 {[%clk 0:03:01]}  Nxc3 {[%clk 0:03:02]} 6. dxc3 {[%clk 0:03:02]}  Be7 {[%clk 0:03:02]} 7. Be3 {[%clk 0:03:02]}  Nd7 {[%clk 0:03:03]} 8. Qd2 {[%clk 0:03:03]}  O-O {[%clk 0:03:03]} 9. O-O-O {[%clk 0:03:04]}  Nf6 {[%clk 0:03:03]} 10. Bd3 {[%clk 0:03:02]}  Re8 {[%clk 0:03:03]} 11. h3 {[%clk 0:02:56]}  c5 {[%clk 0:03:02]} 12. Kb1 {[%clk 0:02:52]}  Qa5 {[%clk 0:02:52]} 13. Rhe1 {[%clk 0:02:38]}  Be6 {[%clk 0:02:43]} 14. c4 {[%clk 0:02:25]}  Qxd2 {[%clk 0:02:44]} 15. Nxd2 {[%clk 0:02:20]}  d5 {[%clk 0:02:37]} 16. Bf4 {[%clk 0:02:03]}  Rad8 {[%clk 0:02:23]} 17. Be5 {[%clk 0:02:01]}  dxc4 {[%clk 0:02:15]} 18. Nxc4 {[%clk 0:01:56]}  b5 {[%clk 0:02:01]} 19. Ne3 {[%clk 0:01:50]}  c4 {[%clk 0:02:00]} 20. Bf5 {[%clk 0:01:49]}  Nd7 {[%clk 0:01:38]} 21. Bc7 {[%clk 0:01:46]}  Nc5 {[%clk 0:00:51]} 22. Bxd8 {[%clk 0:01:44]}  Bxd8 {[%clk 0:00:51]} 23. Nd5 {[%clk 0:01:35]}  Kf8 {[%clk 0:00:44]} 24. Bxe6 {[%clk 0:01:31]}  fxe6 {[%clk 0:00:45]} 25. Nb4 {[%clk 0:01:19]}  a5 {[%clk 0:00:32]} 26. Nc6 {[%clk 0:01:17]}  Bf6 {[%clk 0:00:30]} 27. Ne5 {[%clk 0:00:29]}  Ke7 {[%clk 0:00:18]} 28. Nc6+ {[%clk 0:00:28]}  Kf7 {[%clk 0:00:18]} 29. Ne5+ {[%clk 0:00:29]}  Ke7 {[%clk 0:00:19]} 30. f4 {[%clk 0:00:29]}  Rc8 {[%clk 0:00:18]} 31. Re2 {[%clk 0:00:23]}  g6 {[%clk 0:00:17]} 32. Red2 {[%clk 0:00:16]}  Rc7 {[%clk 0:00:17]} 33. Rd8 {[%clk 0:00:12]}  c3 {[%clk 0:00:12]} 34. bxc3 {[%clk 0:00:09]}  Bxe5 {[%clk 0:00:09]} 35. fxe5 {[%clk 0:00:10]}  Ne4 {[%clk 0:00:09]} 36. R1d3 {[%clk 0:00:08]}  Nxc3+ {[%clk 0:00:08]} 37. Kb2 {[%clk 0:00:08]}  Na4+ {[%clk 0:00:09]} 38. Kc1 {[%clk 0:00:07]}  Nc5 {[%clk 0:00:07]} 39. R3d4 {[%clk 0:00:07]}  b4 {[%clk 0:00:04]} 40. Rh8 {[%clk 0:00:06]}  Nd7 {[%clk 0:00:01]} 41. Rxh7+ {[%clk 0:00:06]}  Ke8 {[%clk 0:00:02]} 42. Rh8+ {[%clk 0:00:06]}  Ke7 {[%clk 0:00:03]} 43. Rh7+ {[%clk 0:00:07]}  Ke8 {[%clk 0:00:03]} 44. h4 {[%clk 0:00:06]}  a4 {[%clk 0:00:03]} 45. Kb1 {[%clk 0:00:06]}  b3 {[%clk 0:00:03]} 46. axb3 {[%clk 0:00:06]}  axb3 {[%clk 0:00:04]} 47. cxb3 {[%clk 0:00:07]}  Rb7 {[%clk 0:00:05]} 48. Rdxd7 {[%clk 0:00:07]}  Rxb3+ {[%clk 0:00:05]} 49. Kc2 {[%clk 0:00:07]}  Rg3 {[%clk 0:00:05]} 50. Rde7+ {[%clk 0:00:06]}  Kd8 {[%clk 0:00:06]} 51. Ra7 {[%clk 0:00:07]}  Rxg2+ {[%clk 0:00:06]} 52. Kd3 {[%clk 0:00:08]}  Rg3+ {[%clk 0:00:07]} 53. Ke2 {[%clk 0:00:08]}  Rg4 {[%clk 0:00:07]} 54. Rh8# {[%clk 0:00:08]} 1-0


[Site "https://www.chess.com"]

[Event "Titled Tuesday Blitz September 13 Early 2022"]
[White "assezde36"]
[Black "Movahed, Sina"]
[BlackFideId "42520835"]
[WhiteElo "2770"]
[BlackElo "2117"]
[Result "0-1"]
[Round "09"]
[TimeControl "180+1"]
[Date "2022.09.13"]
[WhiteClock "0:00:02"]
[BlackClock "0:00:09"]

1. d4 {[%clk 0:03:00]}  Nf6 {[%clk 0:02:59]} 2. c4 {[%clk 0:02:59]}  g6 {[%clk 0:02:59]} 3. Nf3 {[%clk 0:02:59]}  Bg7 {[%clk 0:03:00]} 4. e3 {[%clk 0:02:59]}  O-O {[%clk 0:03:00]} 5. Be2 {[%clk 0:03:00]}  d6 {[%clk 0:03:01]} 6. O-O {[%clk 0:03:00]}  Nbd7 {[%clk 0:03:01]} 7. Nc3 {[%clk 0:03:01]}  e5 {[%clk 0:03:01]} 8. b4 {[%clk 0:03:01]}  exd4 {[%clk 0:03:02]} 9. Nxd4 {[%clk 0:02:51]}  a5 {[%clk 0:03:03]} 10. b5 {[%clk 0:02:52]}  Nc5 {[%clk 0:03:03]} 11. Bb2 {[%clk 0:02:51]}  a4 {[%clk 0:03:03]} 12. Rc1 {[%clk 0:02:48]}  a3 {[%clk 0:03:02]} 13. Ba1 {[%clk 0:02:48]}  Re8 {[%clk 0:03:02]} 14. Qc2 {[%clk 0:02:47]}  h5 {[%clk 0:03:00]} 15. Rfd1 {[%clk 0:02:46]}  h4 {[%clk 0:03:00]} 16. h3 {[%clk 0:02:45]}  Nfe4 {[%clk 0:02:46]} 17. Nd5 {[%clk 0:02:35]}  Bd7 {[%clk 0:02:38]} 18. Nf3 {[%clk 0:02:28]}  Bxa1 {[%clk 0:02:33]} 19. Rxa1 {[%clk 0:02:28]}  Bf5 {[%clk 0:02:25]} 20. Nd4 {[%clk 0:02:11]}  Bd7 {[%clk 0:02:25]} 21. Bf3 {[%clk 0:01:52]}  Ng5 {[%clk 0:02:11]} 22. Qc3 {[%clk 0:01:46]}  Be6 {[%clk 0:01:50]} 23. Nxe6 {[%clk 0:01:37]}  Nxf3+ {[%clk 0:01:42]} 24. gxf3 {[%clk 0:01:38]}  Rxe6 {[%clk 0:01:43]} 25. Rd4 {[%clk 0:01:31]}  c6 {[%clk 0:01:34]} 26. Nf4 {[%clk 0:01:27]}  Qg5+ {[%clk 0:01:23]} 27. Kh2 {[%clk 0:01:23]}  Qe5 {[%clk 0:01:21]} 28. Kg2 {[%clk 0:01:16]}  Rf6 {[%clk 0:01:19]} 29. Rc1 {[%clk 0:01:11]}  Qf5 {[%clk 0:01:03]} 30. Qc2 {[%clk 0:00:59]}  Qg5+ {[%clk 0:01:00]} 31. Kh1 {[%clk 0:00:55]}  Re8 {[%clk 0:00:55]} 32. Rg1 {[%clk 0:00:48]}  Qe5 {[%clk 0:00:54]} 33. Rg4 {[%clk 0:00:34]}  Ne6 {[%clk 0:00:45]} 34. Re4 {[%clk 0:00:32]}  Qf5 {[%clk 0:00:43]} 35. Kg2 {[%clk 0:00:27]}  Nf8 {[%clk 0:00:23]} 36. Qd3 {[%clk 0:00:09]}  Re5 {[%clk 0:00:17]} 37. bxc6 {[%clk 0:00:07]}  bxc6 {[%clk 0:00:17]} 38. Rd4 {[%clk 0:00:06]}  c5 {[%clk 0:00:12]} 39. Rxd6 {[%clk 0:00:04]}  Qxd3 {[%clk 0:00:10]} 40. Rxd3 {[%clk 0:00:04]}  Ref5 {[%clk 0:00:09]} 41. Rxh4 {[%clk 0:00:02]}  Ra6 {[%clk 0:00:09]} 0-1


[Site "https://www.chess.com"]

[Event "Titled Tuesday Blitz September 13 Early 2022"]
[White "Al-Tarboush, Ward"]
[Black "assezde36"]
[WhiteFideId "7601450"]
[WhiteElo "2234"]
[BlackElo "2764"]
[Result "1-0"]
[Round "10"]
[TimeControl "180+1"]
[Date "2022.09.13"]
[WhiteClock "0:00:15"]
[BlackClock "0:00:18"]

1. e4 {[%clk 0:03:00]}  d5 {[%clk 0:02:58]} 2. exd5 {[%clk 0:03:00]}  Qxd5 {[%clk 0:02:59]} 3. Nc3 {[%clk 0:03:00]}  Qa5 {[%clk 0:03:00]} 4. d4 {[%clk 0:03:01]}  Nf6 {[%clk 0:03:00]} 5. Nf3 {[%clk 0:03:02]}  Bf5 {[%clk 0:03:00]} 6. Bc4 {[%clk 0:02:59]}  Nbd7 {[%clk 0:03:00]} 7. Bd2 {[%clk 0:02:58]}  c6 {[%clk 0:03:00]} 8. O-O {[%clk 0:02:55]}  e6 {[%clk 0:02:59]} 9. Nh4 {[%clk 0:02:48]}  Bg4 {[%clk 0:02:51]} 10. f3 {[%clk 0:02:39]}  Bh5 {[%clk 0:02:36]} 11. g4 {[%clk 0:02:36]}  Bg6 {[%clk 0:02:35]} 12. g5 {[%clk 0:02:36]}  Qb6 {[%clk 0:02:18]} 13. Be3 {[%clk 0:02:26]}  Nd5 {[%clk 0:02:17]} 14. Nxd5 {[%clk 0:02:25]}  cxd5 {[%clk 0:02:15]} 15. Bb3 {[%clk 0:02:22]}  a5 {[%clk 0:02:03]} 16. Ba4 {[%clk 0:02:21]}  Qa6 {[%clk 0:01:54]} 17. Bxd7+ {[%clk 0:02:09]}  Kxd7 {[%clk 0:01:55]} 18. c3 {[%clk 0:02:01]}  Bd6 {[%clk 0:01:54]} 19. a4 {[%clk 0:01:58]}  Qd3 {[%clk 0:01:45]} 20. Qxd3 {[%clk 0:01:52]}  Bxd3 {[%clk 0:01:46]} 21. Rfd1 {[%clk 0:01:52]}  Bc4 {[%clk 0:01:44]} 22. f4 {[%clk 0:01:51]}  Ra6 {[%clk 0:01:37]} 23. Rd2 {[%clk 0:01:50]}  Rb8 {[%clk 0:01:28]} 24. Nf3 {[%clk 0:01:41]}  f6 {[%clk 0:01:28]} 25. Rg2 {[%clk 0:01:36]}  f5 {[%clk 0:01:21]} 26. Ne5+ {[%clk 0:01:31]}  Ke7 {[%clk 0:01:16]} 27. h4 {[%clk 0:01:22]}  b5 {[%clk 0:01:08]} 28. axb5 {[%clk 0:01:22]}  Rxb5 {[%clk 0:01:08]} 29. Nxc4 {[%clk 0:01:21]}  dxc4 {[%clk 0:01:08]} 30. Ra2 {[%clk 0:01:21]}  a4 {[%clk 0:01:07]} 31. Bc1 {[%clk 0:01:20]}  Rb3 {[%clk 0:01:05]} 32. Rc2 {[%clk 0:01:18]}  Kd7 {[%clk 0:01:05]} 33. h5 {[%clk 0:01:17]}  Kc6 {[%clk 0:01:04]} 34. Kg2 {[%clk 0:01:16]}  Kd5 {[%clk 0:01:04]} 35. Kf3 {[%clk 0:01:16]}  Ra8 {[%clk 0:00:52]} 36. Ke3 {[%clk 0:01:08]}  Bc7 {[%clk 0:00:50]} 37. Kf3 {[%clk 0:01:08]}  Bb6 {[%clk 0:00:50]} 38. Be3 {[%clk 0:01:01]}  Bd8 {[%clk 0:00:46]} 39. Bc1 {[%clk 0:01:01]}  Be7 {[%clk 0:00:43]} 40. Ke3 {[%clk 0:00:53]}  Ra7 {[%clk 0:00:37]} 41. g6 {[%clk 0:00:53]}  hxg6 {[%clk 0:00:35]} 42. hxg6 {[%clk 0:00:54]}  Bf6 {[%clk 0:00:33]} 43. Ra3 {[%clk 0:00:45]}  Bxd4+ {[%clk 0:00:33]} 44. Kf3 {[%clk 0:00:39]}  Bc5 {[%clk 0:00:28]} 45. Rd2+ {[%clk 0:00:39]}  Kc6 {[%clk 0:00:28]} 46. Re2 {[%clk 0:00:39]}  Kd7 {[%clk 0:00:27]} 47. Ra2 {[%clk 0:00:37]}  a3 {[%clk 0:00:26]} 48. Be3 {[%clk 0:00:31]}  Bd6 {[%clk 0:00:20]} 49. Bxa7 {[%clk 0:00:30]}  axb2 {[%clk 0:00:20]} 50. Raxb2 {[%clk 0:00:23]}  Rxc3+ {[%clk 0:00:21]} 51. Re3 {[%clk 0:00:20]}  Rc1 {[%clk 0:00:21]} 52. Bd4 {[%clk 0:00:20]}  Bf8 {[%clk 0:00:19]} 53. Rb7+ {[%clk 0:00:16]}  Kc6 {[%clk 0:00:19]} 54. Rf7 {[%clk 0:00:16]}  Bd6 {[%clk 0:00:19]} 55. Be5 {[%clk 0:00:15]}  Bc5 {[%clk 0:00:19]} 56. Rc3 {[%clk 0:00:13]}  Rf1+ {[%clk 0:00:19]} 57. Kg2 {[%clk 0:00:14]}  Rf2+ {[%clk 0:00:19]} 58. Kg3 {[%clk 0:00:14]}  Kd5 {[%clk 0:00:17]} 59. Rd7+ {[%clk 0:00:14]}  Kc6 {[%clk 0:00:18]} 60. Rc7+ {[%clk 0:00:14]}  Kd5 {[%clk 0:00:18]} 61. Rxc5+ {[%clk 0:00:14]}  Kxc5 {[%clk 0:00:18]} 62. Kxf2 {[%clk 0:00:15]} 1-0


[Site "https://www.chess.com"]

[Event "Titled Tuesday Blitz September 13 Early 2022"]
[White "Bacrot, Etienne"]
[Black "Gokerkan, Cem Kaan"]
[WhiteFideId "605506"]
[BlackFideId "6336760"]
[WhiteElo "2666"]
[BlackElo "2364"]
[Result "0-1"]
[Round "10"]
[TimeControl "180+1"]
[Date "2022.09.13"]
[WhiteClock "0:00:03"]
[BlackClock "0:00:11"]

1. e4 {[%clk 0:03:00]}  Nf6 {[%clk 0:02:59]} 2. e5 {[%clk 0:03:00]}  Nd5 {[%clk 0:03:00]} 3. d4 {[%clk 0:03:01]}  d6 {[%clk 0:03:00]} 4. Nf3 {[%clk 0:03:01]}  Bg4 {[%clk 0:03:01]} 5. Be2 {[%clk 0:03:01]}  e6 {[%clk 0:03:01]} 6. h3 {[%clk 0:03:00]}  Bh5 {[%clk 0:03:01]} 7. exd6 {[%clk 0:02:58]}  Bxd6 {[%clk 0:02:57]} 8. Nc3 {[%clk 0:02:55]}  Nxc3 {[%clk 0:02:56]} 9. bxc3 {[%clk 0:02:55]}  O-O {[%clk 0:02:57]} 10. O-O {[%clk 0:02:53]}  Nd7 {[%clk 0:02:50]} 11. Rb1 {[%clk 0:02:52]}  Rb8 {[%clk 0:02:45]} 12. Be3 {[%clk 0:02:40]}  a6 {[%clk 0:02:39]} 13. c4 {[%clk 0:02:34]}  c5 {[%clk 0:02:30]} 14. c3 {[%clk 0:02:26]}  Qc7 {[%clk 0:02:24]} 15. Qb3 {[%clk 0:02:24]}  e5 {[%clk 0:02:06]} 16. Rfe1 {[%clk 0:01:55]}  e4 {[%clk 0:02:02]} 17. Ng5 {[%clk 0:01:44]}  Bg6 {[%clk 0:02:03]} 18. h4 {[%clk 0:01:35]}  h6 {[%clk 0:01:56]} 19. Nh3 {[%clk 0:01:32]}  f5 {[%clk 0:01:56]} 20. g3 {[%clk 0:01:31]}  Bxg3 {[%clk 0:01:51]} 21. h5 {[%clk 0:01:27]}  Bh7 {[%clk 0:01:45]} 22. dxc5 {[%clk 0:01:25]}  f4 {[%clk 0:01:36]} 23. Bd4 {[%clk 0:01:09]}  e3 {[%clk 0:01:17]} 24. fxg3 {[%clk 0:01:06]}  f3 {[%clk 0:01:16]} 25. Kh2 {[%clk 0:01:01]}  Bxb1 {[%clk 0:01:10]} 26. Qxb1 {[%clk 0:01:00]}  fxe2 {[%clk 0:01:08]} 27. Qg6 {[%clk 0:00:47]}  Rf7 {[%clk 0:00:53]} 28. Rxe2 {[%clk 0:00:47]}  Ne5 {[%clk 0:00:49]} 29. Qd6 {[%clk 0:00:37]}  Qxd6 {[%clk 0:00:28]} 30. cxd6 {[%clk 0:00:37]}  Nxc4 {[%clk 0:00:29]} 31. Nf4 {[%clk 0:00:31]}  Nxd6 {[%clk 0:00:28]} 32. Rxe3 {[%clk 0:00:31]}  Nf5 {[%clk 0:00:28]} 33. Re6 {[%clk 0:00:29]}  Nxd4 {[%clk 0:00:27]} 34. cxd4 {[%clk 0:00:30]}  Rd8 {[%clk 0:00:24]} 35. d5 {[%clk 0:00:30]}  Rxf4 {[%clk 0:00:23]} 36. gxf4 {[%clk 0:00:30]}  Rxd5 {[%clk 0:00:24]} 37. a4 {[%clk 0:00:25]}  Rxh5+ {[%clk 0:00:24]} 38. Kg3 {[%clk 0:00:26]}  Ra5 {[%clk 0:00:20]} 39. Rb6 {[%clk 0:00:25]}  Rxa4 {[%clk 0:00:20]} 40. Rxb7 {[%clk 0:00:26]}  Ra5 {[%clk 0:00:17]} 41. Ra7 {[%clk 0:00:14]}  Kh7 {[%clk 0:00:17]} 42. Kg4 {[%clk 0:00:12]}  h5+ {[%clk 0:00:18]} 43. Kh4 {[%clk 0:00:11]}  Kh6 {[%clk 0:00:18]} 44. Rb7 {[%clk 0:00:07]}  Ra4 {[%clk 0:00:11]} 45. Rb6+ {[%clk 0:00:04]}  g6 {[%clk 0:00:11]} 46. Kg3 {[%clk 0:00:04]}  Kg7 {[%clk 0:00:11]} 47. Rc6 {[%clk 0:00:04]}  a5 {[%clk 0:00:10]} 48. Rb6 {[%clk 0:00:04]}  Rb4 {[%clk 0:00:10]} 49. Ra6 {[%clk 0:00:04]}  a4 {[%clk 0:00:11]} 50. Kh4 {[%clk 0:00:02]}  Rxf4+ {[%clk 0:00:11]} 51. Kg5 {[%clk 0:00:03]}  Rg4# {[%clk 0:00:11]} 0-1


[Site "https://www.chess.com"]